[Event "Open NK Rapid 2025 bord 26-50"]
[Site "Helmond, Netherlands"]
[Date "2025.05.03"]
[Round "1.25"]
[White "Toroptsev, Kristian"]
[Black "Apon, Iwahn"]
[Result "0-1"]
[TimeControl "15 min +5 sec increment"]
[WhiteFideId "268852"]
[BlackFideId "1056115"]
[WhiteElo "1686"]
[BlackElo "1987"]

1. d4 {[%clk 00:15:08]} Nf6 {[%clk 00:15:08]} {[%emt 00:00:03]} 2. Bf4 {[%clk
00:15:12]} {[%emt 00:00:01]} d6 {[%clk 00:15:12]} {[%emt 00:00:02]} 3. e3
{[%clk 00:15:14]} {[%emt 00:00:03]} c5 {[%clk 00:15:11]} {[%emt 00:00:05]} 4.
c3 {[%clk 00:15:17]} {[%emt 00:00:01]} cxd4 {[%clk 00:15:13]} {[%emt 00:00:03]}
5. exd4 {[%clk 00:15:21]} {[%emt 00:00:02]} g6 {[%clk 00:15:16]} {[%emt
00:00:03]} 6. Nf3 {[%clk 00:15:22]} {[%emt 00:00:03]} Bg7 {[%clk 00:15:18]}
{[%emt 00:00:03]} 7. Bd3 {[%clk 00:15:21]} {[%emt 00:00:06]} Be6 {[%clk
00:15:14]} {[%emt 00:00:08]} 8. O-O {[%clk 00:15:12]} {[%emt 00:00:15]} Qb6
{[%clk 00:15:18]} {[%emt 00:00:02]} 9. Qc2 {[%clk 00:14:54]} {[%emt 00:00:23]}
Nc6 {[%clk 00:15:15]} {[%emt 00:00:08]} 10. h3 {[%clk 00:14:43]} {[%emt
00:00:15]} Rc8 {[%clk 00:15:13]} {[%emt 00:00:07]} 11. Qe2 {[%clk 00:14:32]}
{[%emt 00:00:17]} O-O {[%clk 00:14:38]} {[%emt 00:00:40]} 12. b3 {[%clk
00:13:59]} {[%emt 00:00:37]} Rfe8 {[%clk 00:14:13]} {[%emt 00:00:30]} 13. Nbd2
{[%clk 00:13:51]} {[%emt 00:00:13]} Nd5 {[%clk 00:14:06]} {[%emt 00:00:12]} 14.
Be3 {[%clk 00:13:17]} {[%emt 00:00:38]} Nxc3 {[%clk 00:13:24]} {[%emt
00:00:48]} 15. Qe1 {[%clk 00:13:16]} {[%emt 00:00:06]} d5 {[%clk 00:12:10]}
{[%emt 00:01:19]} 16. Nb1 {[%clk 00:11:31]} {[%emt 00:01:50]} Nxb1 {[%clk
00:11:20]} {[%emt 00:00:56]} 17. Rxb1 {[%clk 00:11:32]} {[%emt 00:00:03]} Nb4
{[%clk 00:11:06]} {[%emt 00:00:19]} 18. Qd2 {[%clk 00:11:12]} {[%emt 00:00:24]}
Nxd3 {[%clk 00:11:07]} {[%emt 00:00:05]} 19. Qxd3 {[%clk 00:11:15]} {[%emt
00:00:02]} Bf5 {[%clk 00:11:09]} {[%emt 00:00:02]} 20. Qd2 {[%clk 00:10:51]}
{[%emt 00:00:30]} Bxb1 {[%clk 00:10:20]} {[%emt 00:00:54]} 21. Rxb1 {[%clk
00:10:54]} {[%emt 00:00:02]} Qc7 {[%clk 00:06:52]} {[%emt 00:03:34]} 22. Rc1
{[%clk 00:10:07]} {[%emt 00:00:51]} Qxc1+ {[%clk 00:06:53]} {[%emt 00:00:05]}
23. Qxc1 {[%clk 00:10:07]} {[%emt 00:00:04]} Rxc1+ {[%clk 00:06:56]} {[%emt
00:00:02]} 24. Bxc1 {[%clk 00:10:10]} {[%emt 00:00:02]} Rc8 {[%clk 00:06:54]}
{[%emt 00:00:07]} 25. Be3 {[%clk 00:09:19]} {[%emt 00:00:56]} Rc2 {[%clk
00:06:47]} {[%emt 00:00:12]} 26. a3 {[%clk 00:09:15]} {[%emt 00:00:09]} Ra2
{[%clk 00:05:34]} {[%emt 00:01:17]} 27. a4 {[%clk 00:09:18]} {[%emt 00:00:03]}
Rb2 {[%clk 00:05:29]} {[%emt 00:00:10]} 0-1

[Event "Open NK Rapid 2025 bord 26-50"]
[Site "Helmond, Netherlands"]
[Date "2025.05.03"]
[Round "2.1"]
[White "Taams, Lisanne"]
[Black "Shakya, Amin"]
[Result "1-0"]
[TimeControl "15 min +5 sec increment"]
[WhiteFideId "1055852"]
[BlackFideId "12311677"]
[WhiteElo "2078"]
[BlackElo "1826"]

1. Nf3 {[%clk 00:15:07]} {[%emt 00:00:02]} c6 {[%clk 00:15:07]} {[%emt
00:00:03]} 2. c4 {[%clk 00:14:52]} {[%emt 00:00:21]} Nf6 {[%clk 00:14:30]}
{[%emt 00:00:42]} 3. Nc3 {[%clk 00:14:51]} {[%emt 00:00:06]} d5 {[%clk
00:14:23]} {[%emt 00:00:11]} 4. e3 {[%clk 00:14:50]} {[%emt 00:00:06]} Bg4
{[%clk 00:13:42]} {[%emt 00:00:46]} 5. Qb3 {[%clk 00:14:06]} {[%emt 00:00:49]}
Qb6 {[%clk 00:13:14]} {[%emt 00:00:33]} 6. Qxb6 {[%clk 00:13:43]} {[%emt
00:00:28]} axb6 {[%clk 00:13:15]} {[%emt 00:00:03]} 7. cxd5 {[%clk 00:13:45]}
{[%emt 00:00:04]} Bxf3 {[%clk 00:11:18]} {[%emt 00:02:03]} 8. gxf3 {[%clk
00:13:47]} {[%emt 00:00:02]} Nbd7 {[%clk 00:11:02]} {[%emt 00:00:21]} 9. dxc6
{[%clk 00:13:38]} {[%emt 00:00:15]} bxc6 {[%clk 00:11:04]} {[%emt 00:00:03]} 10.
d4 {[%emt 00:00:49]} e6 {[%clk 00:11:04]} 11. Rg1 {[%clk 00:12:55]} {[%emt
00:00:09]} g6 {[%clk 00:10:35]} {[%emt 00:00:33]} 12. Bd2 {[%clk 00:12:40]}
{[%emt 00:00:20]} b5 {[%clk 00:09:33]} {[%emt 00:01:08]} 13. Ne4 {[%clk
00:12:19]} {[%emt 00:00:25]} Nxe4 {[%clk 00:08:14]} {[%emt 00:01:24]} 14. fxe4
{[%clk 00:12:22]} {[%emt 00:00:02]} Be7 {[%clk 00:07:14]} {[%emt 00:01:05]} 15.
Bd3 {[%clk 00:12:07]} {[%emt 00:00:21]} Nb6 {[%clk 00:06:48]} {[%emt 00:00:30]}
16. Ke2 {[%clk 00:12:05]} {[%emt 00:00:07]} Na4 {[%clk 00:06:38]} {[%emt
00:00:16]} 17. b3 {[%clk 00:11:28]} {[%emt 00:00:41]} Nb6 {[%clk 00:06:38]}
{[%emt 00:00:05]} 18. Rgc1 {[%clk 00:11:22]} {[%emt 00:00:11]} Kd7 {[%clk
00:06:23]} {[%emt 00:00:20]} 19. f4 {[%clk 00:10:37]} {[%emt 00:00:50]} f6
{[%clk 00:05:32]} {[%emt 00:00:56]} 20. Bc3 {[%clk 00:09:26]} {[%emt 00:01:16]}
f5 {[%clk 00:04:20]} {[%emt 00:01:17]} 21. d5 {[%clk 00:08:33]} {[%emt
00:00:59]} Rhd8 {[%clk 00:03:30]} {[%emt 00:00:55]} 22. dxc6+ {[%clk 00:08:28]}
{[%emt 00:00:09]} Kxc6 {[%clk 00:03:22]} {[%emt 00:00:12]} 23. Bf6+ {[%clk
00:08:08]} {[%emt 00:00:26]} Kb7 {[%clk 00:01:17]} {[%emt 00:02:10]} 24. Bxe7
{[%clk 00:08:02]} {[%emt 00:00:11]} Rd7 {[%clk 00:01:14]} {[%emt 00:00:08]} 25.
Bb4 {[%clk 00:08:00]} {[%emt 00:00:06]} Rad8 {[%clk 00:01:16]} {[%emt
00:00:04]} 26. Bxb5 {[%clk 00:07:59]} {[%emt 00:00:06]} Rf7 {[%clk 00:01:02]}
{[%emt 00:00:19]} 27. a4 {[%clk 00:07:28]} {[%emt 00:00:36]} fxe4 {[%clk
00:00:56]} {[%emt 00:00:10]} 28. Bc6+ {[%clk 00:07:27]} {[%emt 00:00:06]} Ka6
{[%clk 00:00:56]} {[%emt 00:00:06]} 29. Bxe4 {[%clk 00:07:18]} {[%emt
00:00:13]} Nd5 {[%clk 00:00:52]} {[%emt 00:00:10]} 30. Rc6+ {[%clk 00:07:07]}
{[%emt 00:00:16]} Kb7 {[%clk 00:00:54]} {[%emt 00:00:02]} 31. Rxe6 {[%clk
00:07:09]} {[%emt 00:00:03]} Kb8 {[%clk 00:00:42]} {[%emt 00:00:18]} 32. Bd6+
{[%clk 00:06:57]} {[%emt 00:00:16]} Kc8 {[%clk 00:00:41]} {[%emt 00:00:07]} 33.
Bxd5 {[%clk 00:06:50]} {[%emt 00:00:11]} 1-0

[Event "Open NK Rapid 2025 bord 26-50"]
[Site "Helmond, Netherlands"]
[Date "2025.05.03"]
[Round "2.2"]
[White "Elferink, Leon"]
[Black "Becx, Cesar"]
[Result "0-1"]
[TimeControl "15 min +5 sec increment"]
[WhiteFideId "1086545"]
[BlackFideId "1001183"]
[WhiteElo "1822"]
[BlackElo "2075"]

1. e4 {[%clk 00:15:08]} {[%emt 00:00:02]} e5 {[%clk 00:15:09]} {[%emt
00:00:02]} 2. Nf3 {[%clk 00:15:12]} {[%emt 00:00:01]} Nc6 {[%clk 00:15:13]}
{[%emt 00:00:01]} 3. Bb5 {[%clk 00:15:15]} {[%emt 00:00:02]} Nd4 {[%clk
00:15:12]} {[%emt 00:00:06]} 4. Nxd4 {[%clk 00:15:16]} {[%emt 00:00:04]} exd4
{[%clk 00:15:15]} {[%emt 00:00:01]} 5. c3 {[%clk 00:14:38]} {[%emt 00:00:43]}
Bc5 {[%clk 00:15:18]} {[%emt 00:00:03]} 6. O-O {[%clk 00:14:25]} {[%emt
00:00:17]} c6 {[%clk 00:14:44]} {[%emt 00:00:39]} 7. Bd3 {[%clk 00:14:15]}
{[%emt 00:00:15]} d6 {[%clk 00:14:36]} {[%emt 00:00:13]} 8. Re1 {[%clk
00:13:48]} {[%emt 00:00:32]} Be6 {[%clk 00:13:34]} {[%emt 00:01:08]} 9. b4
{[%clk 00:13:04]} {[%emt 00:00:49]} Bb6 {[%clk 00:13:34]} {[%emt 00:00:05]} 10.
Bb2 {[%clk 00:12:57]} {[%emt 00:00:11]} dxc3 {[%clk 00:13:23]} {[%emt
00:00:17]} 11. Nxc3 {[%clk 00:12:11]} {[%emt 00:00:51]} Nf6 {[%clk 00:13:20]}
{[%emt 00:00:07]} 12. Bc2 {[%clk 00:11:51]} {[%emt 00:00:25]} Ng4 {[%clk
00:12:41]} {[%emt 00:00:44]} 13. Rf1 {[%clk 00:08:46]} {[%emt 00:03:11]} Qh4
{[%clk 00:12:37]} {[%emt 00:00:08]} 14. h3 {[%clk 00:08:48]} {[%emt 00:00:03]}
Nxf2 {[%clk 00:12:18]} {[%emt 00:00:24]} 15. Rxf2 {[%clk 00:08:43]} {[%emt
00:00:10]} Bxf2+ {[%clk 00:11:36]} {[%emt 00:00:48]} 16. Kf1 {[%clk 00:08:34]}
{[%emt 00:00:14]} Bd4 {[%clk 00:10:53]} {[%emt 00:00:47]} 17. Qf3 {[%clk
00:08:37]} {[%emt 00:00:02]} O-O {[%clk 00:10:34]} {[%emt 00:00:25]} 18. Rb1
{[%clk 00:07:58]} {[%emt 00:00:44]} f5 {[%clk 00:10:21]} {[%emt 00:00:17]} 19.
e5 {[%clk 00:07:53]} {[%emt 00:00:11]} dxe5 {[%clk 00:10:02]} {[%emt 00:00:23]}
20. Bb3 {[%clk 00:07:48]} {[%emt 00:00:10]} Bxb3 {[%clk 00:10:00]} {[%emt
00:00:08]} 21. axb3 {[%clk 00:07:51]} e4 {[%clk 00:09:41]} {[%emt 00:00:24]} 22.
Qe2 {[%clk 00:07:53]} {[%emt 00:00:04]} Rae8 {[%clk 00:09:15]} {[%emt
00:00:31]} 23. Qc4+ {[%clk 00:07:49]} {[%emt 00:00:09]} Rf7 {[%clk 00:08:38]}
{[%emt 00:00:42]} 24. Qxd4 {[%clk 00:07:52]} {[%emt 00:00:02]} Rd8 {[%clk
00:07:01]} {[%emt 00:01:42]} 25. Qe3 {[%clk 00:07:14]} {[%emt 00:00:42]} Rd3
{[%clk 00:06:51]} {[%emt 00:00:15]} 26. Qf2 {[%clk 00:06:17]} {[%emt 00:01:02]}
Qxf2+ {[%clk 00:06:43]} {[%emt 00:00:14]} 27. Kxf2 {[%clk 00:06:21]} {[%emt
00:00:01]} Rxd2+ {[%clk 00:06:46]} {[%emt 00:00:01]} 28. Ne2 {[%clk 00:05:44]}
{[%emt 00:00:42]} Rfd7 {[%clk 00:05:04]} {[%emt 00:01:47]} 29. Bc3 {[%clk
00:04:56]} {[%emt 00:00:53]} Ra2 {[%clk 00:04:47]} {[%emt 00:00:21]} 30. Bd4
{[%clk 00:04:46]} {[%emt 00:00:16]} Rxd4 {[%clk 00:04:49]} {[%emt 00:00:04]} 31.
Ke3 {[%clk 00:04:48]} {[%emt 00:00:03]} Rd3+ {[%clk 00:04:52]} {[%emt
00:00:02]} 0-1

[Event "Open NK Rapid 2025 bord 26-50"]
[Site "Helmond, Netherlands"]
[Date "2025.05.03"]
[Round "2.3"]
[White "Ruben, Berend"]
[Black "Khatniuk, Anastasiia"]
[Result "0-1"]
[TimeControl "15 min +5 sec increment"]
[WhiteFideId "1084682"]
[BlackFideId "14179105"]
[WhiteElo "2074"]
[BlackElo "1822"]

1. e4 {[%clk 00:15:07]} {[%emt 00:00:02]} c5 {[%clk 00:15:09]} {[%emt
00:00:02]} 2. Nf3 {[%clk 00:15:09]} {[%emt 00:00:02]} e6 {[%clk 00:15:12]}
{[%emt 00:00:02]} 3. d4 {[%clk 00:15:13]} {[%emt 00:00:01]} cxd4 {[%clk
00:15:15]} {[%emt 00:00:02]} 4. Nxd4 {[%clk 00:15:16]} {[%emt 00:00:02]} a6
{[%clk 00:15:18]} {[%emt 00:00:02]} 5. Nc3 {[%clk 00:14:55]} {[%emt 00:00:27]}
b5 {[%clk 00:15:21]} {[%emt 00:00:02]} 6. a3 {[%clk 00:14:48]} {[%emt
00:00:11]} Bb7 {[%clk 00:15:15]} {[%emt 00:00:11]} 7. Be2 {[%clk 00:14:19]}
{[%emt 00:00:34]} Ne7 {[%clk 00:14:55]} {[%emt 00:00:26]} 8. O-O {[%clk
00:14:08]} {[%emt 00:00:15]} Nbc6 {[%clk 00:14:44]} {[%emt 00:00:15]} 9. Bg5
{[%clk 00:13:29]} {[%emt 00:00:44]} h6 {[%clk 00:12:57]} {[%emt 00:01:54]} 10.
Bh4 {[%clk 00:13:08]} {[%emt 00:00:25]} Qb6 {[%clk 00:12:31]} {[%emt 00:00:31]}
11. Nf3 {[%clk 00:12:23]} {[%emt 00:00:51]} g5 {[%clk 00:11:33]} {[%emt
00:01:03]} 12. Bg3 {[%clk 00:12:24]} {[%emt 00:00:03]} Bg7 {[%clk 00:11:31]}
{[%emt 00:00:07]} 13. Qd6 {[%clk 00:11:45]} {[%emt 00:00:44]} Nc8 {[%clk
00:10:16]} {[%emt 00:01:20]} 14. Qd2 {[%clk 00:11:42]} {[%emt 00:00:08]} O-O
{[%clk 00:10:02]} {[%emt 00:00:19]} 15. Qxd7 {[%clk 00:10:57]} {[%emt
00:00:50]} Rd8 {[%clk 00:09:09]} {[%emt 00:00:58]} 16. Qc7 {[%clk 00:10:59]}
{[%emt 00:00:03]} Qxc7 {[%clk 00:09:12]} {[%emt 00:00:02]} 17. Bxc7 {[%clk
00:11:02]} {[%emt 00:00:02]} Rd7 {[%clk 00:09:15]} {[%emt 00:00:02]} 18. Bg3
{[%clk 00:11:01]} {[%emt 00:00:06]} Nb6 {[%clk 00:08:46]} {[%emt 00:00:35]} 19.
Rad1 {[%clk 00:10:19]} {[%emt 00:00:47]} Rad8 {[%clk 00:08:49]} {[%emt
00:00:02]} 20. Rxd7 {[%clk 00:10:17]} {[%emt 00:00:06]} Rxd7 {[%clk 00:08:53]}
{[%emt 00:00:02]} 21. Rd1 {[%clk 00:10:10]} {[%emt 00:00:11]} Rxd1+ {[%clk
00:08:56]} {[%emt 00:00:02]} 22. Nxd1 {[%clk 00:10:02]} {[%emt 00:00:14]} Na4
{[%clk 00:08:38]} {[%emt 00:00:23]} 23. b3 {[%clk 00:09:45]} {[%emt 00:00:21]}
Nc5 {[%clk 00:08:28]} {[%emt 00:00:15]} 24. Bd3 {[%clk 00:08:51]} {[%emt
00:00:59]} Nd4 {[%clk 00:08:26]} {[%emt 00:00:07]} 25. Nxd4 {[%clk 00:08:41]}
{[%emt 00:00:16]} Bxd4 {[%clk 00:08:28]} {[%emt 00:00:02]} 26. e5 {[%clk
00:08:10]} {[%emt 00:00:36]} Nd7 {[%clk 00:08:17]} {[%emt 00:00:16]} 27. Kf1
{[%clk 00:07:40]} {[%emt 00:00:35]} Nxe5 {[%clk 00:08:02]} {[%emt 00:00:20]} 28.
Bxe5 {[%clk 00:07:30]} {[%emt 00:00:15]} Bxe5 {[%clk 00:08:05]} {[%emt
00:00:02]} 29. c4 {[%clk 00:06:23]} {[%emt 00:01:12]} bxc4 {[%clk 00:07:54]}
{[%emt 00:00:17]} 30. Bxc4 {[%clk 00:06:24]} {[%emt 00:00:04]} Kf8 {[%clk
00:07:31]} {[%emt 00:00:28]} 31. h3 {[%clk 00:06:04]} {[%emt 00:00:25]} Ke7
{[%clk 00:07:16]} {[%emt 00:00:20]} 32. f3 {[%clk 00:05:48]} {[%emt 00:00:20]}
f5 {[%clk 00:06:50]} {[%emt 00:00:31]} 33. Ke2 {[%clk 00:05:40]} {[%emt
00:00:13]} h5 {[%clk 00:06:45]} {[%emt 00:00:11]} 34. Nf2 {[%clk 00:04:55]}
{[%emt 00:00:50]} Bb2 {[%clk 00:06:48]} {[%emt 00:00:02]} 35. a4 {[%clk
00:04:56]} {[%emt 00:00:04]} Bc3 {[%clk 00:06:46]} {[%emt 00:00:06]} 36. Nd3
{[%clk 00:04:33]} {[%emt 00:00:28]} Kd6 {[%clk 00:06:31]} {[%emt 00:00:20]} 37.
Ke3 {[%clk 00:03:35]} {[%emt 00:01:03]} a5 {[%clk 00:06:17]} {[%emt 00:00:19]}
38. Nc1 {[%clk 00:03:21]} {[%emt 00:00:18]} e5 {[%clk 00:05:46]} {[%emt
00:00:38]} 39. Bf7 {[%clk 00:03:14]} {[%emt 00:00:11]} Bd4+ {[%clk 00:05:35]}
{[%emt 00:00:16]} 40. Kd3 {[%clk 00:03:03]} {[%emt 00:00:17]} h4 {[%clk
00:05:39]} 41. Bc4 {[%clk 00:02:35]} {[%emt 00:00:33]} Bc5 {[%clk 00:05:36]}
{[%emt 00:00:08]} 42. Ke2 {[%clk 00:02:33]} {[%emt 00:00:07]} e4 {[%clk
00:05:32]} {[%emt 00:00:09]} 43. fxe4 {[%clk 00:01:35]} {[%emt 00:01:03]} Bxe4
{[%clk 00:05:35]} {[%emt 00:00:02]} 44. Kf1 {[%clk 00:01:38]} {[%emt 00:00:02]}
Be3 {[%clk 00:04:51]} {[%emt 00:00:48]} 45. Ne2 {[%clk 00:01:30]} {[%emt
00:00:14]} Kc5 {[%clk 00:04:39]} {[%emt 00:00:17]} 46. Nc3 {[%clk 00:01:20]}
{[%emt 00:00:15]} Bc6 {[%clk 00:04:42]} {[%emt 00:00:02]} 47. Nd1 {[%clk
00:00:57]} {[%emt 00:00:27]} Bd4 {[%clk 00:04:39]} {[%emt 00:00:03]} 48. Nf2
{[%clk 00:01:01]} {[%emt 00:00:06]} Kb4 {[%clk 00:04:30]} {[%emt 00:00:14]} 49.
Be6 {[%clk 00:00:55]} {[%emt 00:00:10]} Bxf2 {[%clk 00:04:15]} {[%emt
00:00:22]} 50. Kxf2 {[%clk 00:00:58]} {[%emt 00:00:02]} Be4 {[%clk 00:04:19]}
{[%emt 00:00:01]} 51. Ke3 {[%clk 00:00:18]} {[%emt 00:00:45]} Bxg2 {[%clk
00:04:19]} {[%emt 00:00:05]} 52. Bxf5 {[%clk 00:00:20]} {[%emt 00:00:02]} Kxb3
{[%clk 00:04:11]} {[%emt 00:00:13]} 53. Bd7 {[%clk 00:00:23]} {[%emt 00:00:03]}
Kc4 {[%clk 00:04:08]} {[%emt 00:00:07]} 54. Kf2 {[%clk 00:00:10]} {[%emt
00:00:18]} Bd5 {[%clk 00:04:01]} {[%emt 00:00:11]} 55. Ke3 {[%clk 00:00:13]}
{[%emt 00:00:03]} Kb4 {[%clk 00:03:42]} {[%emt 00:00:25]} 56. Kd4 {[%clk
00:00:06]} {[%emt 00:00:12]} Bb3 {[%clk 00:03:45]} {[%emt 00:00:01]} 57. Ke5
{[%clk 00:00:08]} {[%emt 00:00:03]} Bxa4 {[%clk 00:03:44]} {[%emt 00:00:06]} 58.
Bf5 {[%clk 00:00:08]} {[%emt 00:00:05]} Bd1 {[%clk 00:03:15]} {[%emt 00:00:34]}
59. Kf6 {[%clk 00:00:07]} {[%emt 00:00:06]} g4 {[%clk 00:03:18]} {[%emt
00:00:03]} 60. Bxg4 {[%clk 00:00:08]} {[%emt 00:00:04]} Bxg4 {[%clk 00:03:20]}
{[%emt 00:00:02]} 61. hxg4 {[%clk 00:00:12]} {[%emt 00:00:02]} h3 {[%clk
00:03:21]} {[%emt 00:00:03]} 62. g5 {[%clk 00:00:09]} {[%emt 00:00:08]} h2
{[%clk 00:03:24]} {[%emt 00:00:02]} 63. g6 {[%clk 00:00:12]} {[%emt 00:00:02]}
h1=Q {[%clk 00:03:25]} {[%emt 00:00:04]} 64. Kg7 {[%clk 00:00:13]} {[%emt
00:00:04]} Qa1+ {[%clk 00:03:28]} {[%emt 00:00:02]} 65. Kh7 {[%clk 00:00:11]}
{[%emt 00:00:07]} a4 {[%clk 00:03:27]} {[%emt 00:00:06]} 66. Kg8 {[%clk
00:00:06]} {[%emt 00:00:10]} Qf6 {[%clk 00:03:28]} {[%emt 00:00:04]} 67. Kh7
{[%clk 00:00:00]} {[%emt 00:00:06]} Kc5 {[%clk 00:03:28]} {[%emt 00:00:02]} 68.
g7 0-1

[Event "Open NK Rapid 2025 bord 26-50"]
[Site "Helmond, Netherlands"]
[Date "2025.05.03"]
[Round "2.4"]
[White "Werkhoven, Maarten"]
[Black "Chua, Ethan"]
[Result "0-1"]
[TimeControl "15 min +5 sec increment"]
[WhiteFideId "1014188"]
[BlackFideId "1089250"]
[WhiteElo "1822"]
[BlackElo "2069"]

1. Nc3 {[%clk 00:15:07]} {[%emt 00:00:02]} d5 {[%clk 00:15:09]} {[%emt
00:00:02]} 2. e4 {[%clk 00:15:11]} {[%emt 00:00:01]} d4 {[%clk 00:15:11]}
{[%emt 00:00:03]} 3. Nce2 {[%clk 00:15:14]} {[%emt 00:00:01]} e5 {[%clk
00:15:13]} {[%emt 00:00:03]} 4. Nf3 {[%clk 00:15:13]} {[%emt 00:00:06]} Nc6
{[%clk 00:14:59]} {[%emt 00:00:19]} 5. Ng3 {[%clk 00:15:15]} {[%emt 00:00:03]}
h5 {[%clk 00:14:18]} {[%emt 00:00:46]} 6. h4 {[%clk 00:15:10]} {[%emt
00:00:09]} Bg4 {[%clk 00:14:16]} {[%emt 00:00:08]} 7. Be2 {[%clk 00:14:38]}
{[%emt 00:00:37]} Nf6 {[%clk 00:13:46]} {[%emt 00:00:35]} 8. d3 {[%clk
00:14:42]} {[%emt 00:00:02]} Qd7 {[%clk 00:13:40]} {[%emt 00:00:11]} 9. Bg5
{[%clk 00:14:40]} {[%emt 00:00:06]} Be7 {[%clk 00:13:43]} {[%emt 00:00:03]} 10.
Bxf6 {[%clk 00:14:22]} {[%emt 00:00:22]} Bxf6 {[%clk 00:13:42]} {[%emt
00:00:06]} 11. Nh2 {[%clk 00:14:16]} {[%emt 00:00:11]} Bxe2 {[%clk 00:13:39]}
{[%emt 00:00:08]} 12. Qxe2 {[%clk 00:14:14]} {[%emt 00:00:07]} g6 {[%clk
00:13:15]} {[%emt 00:00:29]} 13. Nf3 {[%clk 00:14:00]} {[%emt 00:00:18]} O-O-O
{[%clk 00:13:08]} {[%emt 00:00:12]} 14. O-O-O {[%clk 00:13:36]} {[%emt
00:00:29]} Qe6 {[%clk 00:13:01]} {[%emt 00:00:13]} 15. b3 {[%clk 00:12:14]}
{[%emt 00:01:26]} Qd6 {[%clk 00:12:48]} {[%emt 00:00:18]} 16. Ng5 {[%clk
00:07:57]} {[%emt 00:04:22]} Qa3+ {[%clk 00:12:37]} {[%emt 00:00:18]} 17. Kd2
{[%clk 00:08:00]} {[%emt 00:00:02]} Qb4+ {[%clk 00:12:11]} {[%emt 00:00:31]} 18.
Kc1 {[%clk 00:08:03]} {[%emt 00:00:01]} Be7 {[%clk 00:11:11]} {[%emt 00:01:05]}
19. Rd2 {[%clk 00:07:18]} {[%emt 00:00:49]} Qc3 {[%clk 00:10:58]} {[%emt
00:00:20]} 0-1